bitfinex/quotes_ETHUSD_20250807
["timestamp","ask_amount","ask_price","bid_price","bid_amount"]
[1754590078207,19.28754663,3827.6,3827.5,0.4971]
[1754590078512,19.28754663,3827.6,3827.5,0.795]
[1754590078709,4.78754663,3827.6,3827.5,0.795]
[1754590079005,4.22747574,3827.6,3827.5,0.795]
[1754590079423,4.78754663,3827.6,3827.5,0.4971]
[1754590079984,4.22747574,3827.6,3827.5,0.4971]
[1754590080480,2.611992,3828.5,3827.6,2.61260319]
[1754590080687,0.1304,3828.0,3827.7,0.4961]
[1754590080987,4.22743877,3827.9,3827.8,0.4961]
[1754590082012,0.24443877,3827.9,3827.8,3.40646669]
[1754590082213,0.24443877,3828.1,3828.0,2.61233019]
[1754590082521,4.22742612,3828.1,3828.0,3.40633019]
[1754590082896,4.22742612,3828.1,3828.0,3.53673019]
[1754590083077,4.22742612,3828.1,3828.0,0.9244]
[1754590083280,4.22742612,3828.1,3828.0,3.53673019]
[1754590084084,4.22742612,3828.1,3828.0,5.29059435]
[1754590084726,4.22742612,3828.1,3828.0,4.99269435]
[1754590084938,4.22742612,3828.1,3828.0,2.38036416]
[1754590085283,3.983,3828.1,3828.0,0.1304]
[1754590085486,7.91452911,3828.1,3827.6,0.1304]
[1754590085796,1.18886211,3828.0,3827.6,0.1304]
[1754590085996,4.22746211,3827.9,3827.6,0.1304]
[1754590086196,0.24446211,3827.8,3827.6,0.1304]
[1754590086380,3.983,3827.7,3827.6,0.1304]
[1754590087332,3.983,3827.7,3827.6,2.74300319]
[1754590088715,3.983,3827.7,3827.6,3.23910319]
[1754590089318,14.6304,3828.1,3827.6,3.23910319]
[1754590089491,3.982,3828.0,3827.6,3.23910319]
[1754590090015,3.982,3828.0,3827.6,0.6265]
[1754590090216,3.982,3828.0,3827.6,0.1304]
[1754590090533,3.982,3828.0,3827.6,2.74296338]
[1754590091198,4.4668,3828.0,3827.6,0.1304]
[1754590091399,0.9444,3827.9,3827.6,0.1304]
[1754590091603,3.982,3827.8,3827.6,0.1304]
[1754590091812,4.4668,3827.8,3827.6,0.1304]
[1754590092233,4.4668,3827.8,3827.5,0.001]
[1754590092426,0.9444,3827.7,3827.5,0.001]
[1754590092626,3.982,3827.6,3827.5,0.001]
[1754590093011,4.9264,3827.6,3827.5,0.001]
[1754590093351,3.982,3827.6,3827.5,0.001]
[1754590093919,4.9264,3827.6,3827.5,0.001]
[1754590094108,5.43208,3827.6,3827.5,0.001]
[1754590094309,8.04468319,3827.6,3827.5,0.001]
[1754590094544,5.43208,3827.6,3827.5,0.001]
[1754590095018,19.93208,3827.6,3827.5,0.001]
[1754590095359,19.4264,3827.6,3827.5,0.001]
[1754590096536,18.482,3827.6,3827.5,0.001]
[1754590097341,19.4264,3827.6,3827.5,0.001]
[1754590097542,22.03900319,3827.6,3827.5,0.001]
[1754590097749,24.21390153,3827.6,3827.5,0.001]
[1754590097923,22.28369458,3827.6,3827.5,0.001]
[1754590098620,22.84724159,3827.6,3827.5,0.001]
[1754590099655,20.2346384,3827.6,3827.5,0.001]
[1754590100066,19.67109139,3827.6,3827.5,0.001]
[1754590100880,14.74469139,3827.6,3827.5,0.001]
[1754590101170,4.22669139,3827.6,3827.5,0.001]
[1754590102122,5.17109139,3827.6,3827.5,0.001]
[1754590102549,7.78369458,3827.6,3827.5,0.001]
[1754590102755,7.53900319,3827.6,3827.5,0.001]
[1754590102938,5.17115729,3827.6,3827.5,0.001]
[1754590103323,7.78376048,3827.6,3827.5,0.001]
[1754590103566,8.34741115,3827.6,3827.5,0.001]
[1754590104334,4.79040796,3827.6,3827.5,0.001]
[1754590104570,4.22675729,3827.6,3827.5,0.001]
[1754590105551,5.17115729,3827.6,3827.5,0.001]
[1754590105734,22.84741115,3827.6,3827.5,0.001]
[1754590105934,22.84741965,3827.6,3827.5,0.001]
[1754590108537,20.23481646,3827.6,3827.5,0.001]
[1754590108840,19.29041646,3827.6,3827.5,0.001]
[1754590109243,15.30841646,3827.6,3827.5,0.001]
[1754590109550,4.22674846,3827.6,3827.5,0.4584]
[1754590109863,4.22674841,3827.6,3827.5,0.4584]
[1754590110062,3.982,3827.6,3827.5,0.001]
[1754590110530,0.1304,3827.9,3827.5,0.4584]
[1754590110732,3.982,3827.8,3827.7,10.32548915]
[1754590111134,3.982,3827.8,3827.7,0.4574]
[1754590111370,3.982,3827.8,3827.5,2.74404547]
[1754590111668,3.982,3827.8,3827.5,2.74406421]
[1754590111871,3.982,3827.7,3827.5,0.5888]
[1754590112166,3.982,3827.6,3827.5,0.5888]
[1754590112336,3.982,3827.6,3827.5,0.1314]
[1754590112537,7.95410319,3827.6,3827.5,0.001]
[1754590112733,8.19885955,3827.6,3827.5,0.001]
[1754590113054,8.76255757,3827.6,3827.5,0.001]
[1754590113253,8.89295757,3827.6,3827.5,0.001]
[1754590113668,2.29835438,3827.6,3827.5,0.001]
[1754590113872,4.35615636,3827.6,3827.5,0.001]
[1754590114369,6.96875955,3827.6,3827.5,0.001]
[1754590114550,8.02045757,3827.6,3827.5,0.001]
[1754590114751,8.49375757,3827.6,3827.5,0.001]
[1754590116074,22.99375757,3827.6,3827.5,0.001]
[1754590117937,15.43885438,3827.6,3827.5,0.001]
[1754590118137,0.93885438,3827.6,3827.5,0.001]
[1754590118338,4.22575636,3827.6,3827.5,0.4584]
[1754590118770,4.22575636,3827.6,3827.5,0.001]
[1754590119082,0.24475636,3827.6,3827.5,0.001]
[1754590119273,3.981,3827.6,3827.5,1.03071895]
[1754590119473,3.981,3827.6,3827.5,2.8880904]
[1754590119666,3.981,3827.6,3827.5,3.3454904]
[1754590120869,3.981,3827.6,3827.5,0.001]
[1754590122000,3.981,3827.6,3827.5,2.61367145]
[1754590123387,3.981,3827.6,3827.5,3.07107145]
[1754590123593,0.1304,3828.0,3827.6,2.61260122]
[1754590123824,3.981,3827.9,3827.8,2.74281519]
[1754590124109,3.981,3827.9,3827.8,3.20021519]
[1754590124501,0.56569802,3828.1,3828.0,2.61233019]
[1754590124502,0.002,3828.1,3828.0,2.61233019]
[1754590125225,0.002,3828.1,3827.8,1.16918164]
[1754590125515,0.002,3828.1,3827.9,0.4574]
[1754590125692,0.002,3828.1,3827.9,3.0697944]
[1754590125889,0.002,3828.1,3828.0,2.61233019]
[1754590126101,0.002,3828.1,3828.0,3.20598649]
[1754590126419,0.002,3828.1,3828.0,3.66338649]
[1754590127128,0.002,3828.1,3828.0,3.20598649]
[1754590127335,0.002,3828.1,3828.0,3.66338649]
[1754590127835,0.002,3828.1,3828.0,3.20598649]
[1754590128038,0.002,3828.1,3828.0,2.61233019]
[1754590128329,0.002,3828.1,3828.0,3.06973019]
[1754590128536,0.002,3828.1,3828.0,3.49803019]
[1754590130226,0.002,3828.1,3828.0,3.20013019]
[1754590130390,0.002,3828.1,3828.0,2.74273019]
[1754590131888,0.002,3828.1,3828.0,3.20013019]
[1754590132322,0.002,3828.1,3828.0,2.74273019]
[1754590132510,0.002,3828.1,3828.0,0.72405747]
[1754590132714,0.002,3828.1,3828.0,0.1304]
[1754590133028,0.9633,3828.1,3827.9,0.1304]
[1754590133204,3.98,3828.0,3827.9,0.1304]
[1754590133605,5.0717,3828.0,3827.5,0.001]
[1754590133746,0.9613,3827.9,3827.5,0.001]
[1754590133932,2.61254576,3827.7,3827.5,0.001]
[1754590134137,0.03265583,3827.8,3827.5,0.001]
[1754590134138,4.1104,3827.6,3827.5,0.001]
[1754590134441,3.98,3827.6,3827.5,2.61366635]
[1754590135009,15.1037,3827.9,3827.8,2.61246669]
[1754590135010,0.1304,3827.9,3827.8,2.61246669]
[1754590135232,0.002,3828.1,3827.7,0.1304]
[1754590135446,0.002,3828.1,3828.0,2.61233019]
[1754590135647,0.002,3828.1,3828.0,2.74273019]
[1754590135648,3.982,3828.1,3828.0,2.74273019]
[1754590135835,0.002,3828.1,3828.0,4.65907988]
[1754590136814,0.002,3828.1,3828.0,4.36117988]
[1754590140337,0.002,3828.1,3828.0,3.90377988]
[1754590142049,0.002,3828.1,3828.0,4.37807988]
[1754590144822,0.002,3828.1,3828.0,3.90377988]
[1754590145565,0.002,3828.1,3828.0,4.37807988]
[1754590146430,0.002,3828.1,3828.0,3.90377988]
[1754590146963,0.002,3828.5,3828.4,3.16205725]
[1754590147164,0.002,3828.5,3828.4,21.36990613]
[1754590147363,0.002,3828.5,3828.4,21.20240613]
[1754590149732,0.002,3828.5,3828.4,20.72810613]
[1754590150264,0.002,3828.5,3828.4,16.74810613]
[1754590150962,0.002,3828.5,3828.4,21.20140613]
[1754590152874,0.002,3828.5,3828.4,18.43499289]
[1754590153458,0.002,3828.5,3828.4,13.98169289]
[1754590154034,0.9362,3828.5,3828.4,3.66366298]
[1754590156758,0.002,3828.5,3828.4,3.66366298]
[1754590157144,0.002,3828.5,3828.4,6.66366298]
[1754590157338,0.002,3828.5,3828.4,7.13796298]
[1754590158840,0.002,3828.5,3828.4,6.66366298]
[1754590160194,0.002,3828.5,3828.4,7.13796298]
[1754590161584,0.002,3828.5,3828.4,11.40796298]
[1754590162175,0.002,3828.5,3828.4,11.70586298]
[1754590164878,0.002,3828.5,3828.4,11.40796298]
[1754590169502,0.002,3828.5,3828.4,10.93366298]
[1754590170385,0.9603,3828.5,3828.4,14.91166298]
[1754590171370,0.9603,3828.5,3828.4,10.93366298]
[1754590171604,0.9603,3828.5,3828.4,14.91166298]
[1754590173303,0.9603,3828.5,3828.4,10.64166298]
[1754590174769,0.9603,3828.5,3828.4,6.66366298]
[1754590174971,0.9603,3828.5,3828.4,10.64166298]
[1754590175405,0.4733,3828.5,3828.4,10.64166298]
[1754590175709,0.9603,3828.5,3828.4,10.64166298]
[1754590179309,0.9603,3828.5,3828.4,14.91166298]
[1754590183199,0.002,3828.5,3828.4,14.91166298]
[1754590183440,0.002,3828.9,3828.8,3.16178437]
[1754590183724,0.002,3828.9,3828.8,21.85721428]
[1754590184293,0.9603,3828.9,3828.8,21.85721428]
[1754590184495,0.9603,3828.9,3828.8,17.88021428]
[1754590184733,0.9603,3828.9,3828.8,7.01218437]
[1754590186512,0.9603,3828.9,3828.8,7.01218437]
[1754590187319,0.9603,3828.9,3828.8,4.27]
[1754590187695,0.9603,3828.9,3828.8,6.88178437]
[1754590188019,0.9603,3828.9,3828.8,17.19981428]
[1754590188201,0.9603,3828.9,3828.8,12.92981428]
[1754590188716,0.9603,3828.9,3828.7,0.1304]
[1754590188893,0.002,3828.9,3828.7,0.1304]
[1754590189094,0.9583,3828.8,3828.7,0.1304]
[1754590189707,0.9583,3828.8,3828.7,2.74225258]
[1754590197099,0.9583,3828.8,3828.7,0.1304]
[1754590197297,0.9583,3828.8,3828.7,2.74225258]
[1754590197517,0.9583,3828.8,3828.2,6.16213684]
[1754590197758,1.20315932,3828.7,3828.3,0.1304]
[1754590198066,1.20315932,3828.7,3828.1,0.26758635]
[1754590198067,0.1304,3828.6,3828.1,0.26758635]
[1754590198350,1.28089329,3828.5,3828.1,2.87983436]
[1754590198517,0.8956,3828.4,3828.1,2.87983436]
[1754590198719,0.1304,3828.6,3828.1,2.87983436]
[1754590198954,0.8956,3828.3,3828.1,2.87983436]
[1754590199130,0.8956,3828.2,3828.1,2.87983436]
[1754590200457,0.4501,3828.5,3828.3,2.61209024]
[1754590200752,19.3716,3828.7,3828.3,12.93012015]
[1754590201053,1.14044912,3828.6,3828.3,13.06052015]
[1754590201222,1.14044912,3828.5,3828.3,10.44842991]
[1754590201422,3.976,3828.7,3828.3,10.44842991]
[1754590201619,0.8956,3828.4,3828.3,13.06055539]
[1754590201824,4.4215,3828.7,3828.6,2.6119208]
[1754590202048,5.11638803,3828.7,3828.5,2.61196556]
[1754590202251,1.14038301,3828.6,3828.3,10.44842991]
[1754590202456,0.8956,3828.6,3828.3,10.44842991]
[1754590202751,0.8956,3828.5,3828.3,10.44842991]
[1754590202957,0.8956,3828.5,3828.4,2.61205725]
[1754590203134,0.8956,3828.5,3828.3,13.06053928]
[1754590203543,0.8956,3828.4,3828.3,13.06053928]
[1754590203922,0.8956,3828.4,3828.3,13.06155539]
[1754590207860,0.69470858,3828.6,3828.4,2.61201639]
[1754590208156,0.8956,3828.5,3828.3,13.06154558]
[1754590208357,0.8956,3828.4,3828.3,2.74351567]
[1754590208776,0.8956,3828.4,3828.3,2.74352548]
[1754590209561,0.8956,3828.4,3828.3,0.1314]
[1754590209876,0.8956,3828.4,3828.3,2.74352548]
[1754590210579,0.8956,3828.4,3828.3,0.1314]
[1754590211247,0.8956,3828.4,3828.3,2.74352548]
[1754590212182,0.24457301,3828.6,3828.3,2.74352548]
[1754590212393,0.4455,3828.5,3828.3,0.1314]
[1754590212752,0.4501,3828.4,3828.3,0.1314]
[1754590213181,0.8956,3828.4,3828.3,0.1314]
[1754590213882,0.69467662,3828.6,3828.4,2.61200496]
[1754590214184,0.8956,3828.5,3828.3,2.74350418]
[1754590214565,0.8956,3828.5,3828.3,0.1314]
[1754590214758,3.976,3828.7,3828.3,2.74351849]
[1754590214952,0.8956,3828.4,3828.3,0.1314]
[1754590216996,0.8956,3828.4,3828.3,2.74352548]
[1754590217565,0.4501,3828.6,3828.4,2.61201522]
[1754590217779,1.14023838,3828.5,3828.3,2.7435064]
[1754590217971,0.8956,3828.5,3828.3,2.74352154]
[1754590218693,0.4501,3828.4,3828.3,2.74352154]
[1754590218899,0.8956,3828.4,3828.3,2.74352154]
[1754590219088,0.8956,3828.4,3828.3,0.1314]
[1754590219288,0.4455,3828.4,3828.3,0.1314]
[1754590219597,0.8956,3828.4,3828.3,0.001]
[1754590219817,8.58652559,3828.4,3828.3,0.001]
[1754590220043,7.85872091,3828.4,3828.3,0.001]
[1754590220174,8.42251928,3828.4,3828.3,0.001]
[1754590221708,4.44651928,3828.4,3828.3,0.001]
[1754590221903,7.85872091,3828.4,3828.3,0.001]
[1754590222067,9.52596362,3828.4,3828.3,0.001]
[1754590222270,24.02596362,3828.4,3828.3,0.001]
[1754590225485,9.52596362,3828.4,3828.3,0.001]
[1754590225889,24.02596362,3828.4,3828.3,0.001]
[1754590226079,24.02551976,3828.4,3828.3,0.001]
[1754590226271,23.78129996,3828.4,3828.3,0.001]
[1754590226477,24.02552422,3828.4,3828.3,0.001]
[1754590228904,24.13018822,3828.4,3828.3,0.001]
[1754590230009,27.02552422,3828.4,3828.3,0.001]
[1754590230217,37.34355413,3828.4,3828.3,0.001]
[1754590230781,37.44822813,3828.4,3828.3,0.001]
[1754590232112,37.44822813,3828.4,3828.3,1e-08]
[1754590232688,23.15419822,3828.4,3828.3,1e-08]
[1754590232929,27.02552422,3828.4,3828.3,1e-08]
[1754590234187,5.61219372,3828.2,3828.1,1e-08]
[1754590234496,21.91610026,3828.2,3828.1,1e-08]
[1754590234696,22.84460026,3828.2,3828.1,1e-08]
[1754590235023,22.84412123,3828.2,3828.1,1e-08]
[1754590236995,37.34412123,3828.2,3828.1,1e-08]
[1754590237831,23.05009132,3828.2,3828.1,1e-08]
[1754590237996,26.09759132,3828.2,3828.1,1e-08]
[1754590238327,27.02609132,3828.2,3828.1,1e-08]
[1754590238692,22.11902508,3828.2,3828.1,1e-08]
[1754590239035,26.09502508,3828.2,3828.1,1e-08]
[1754590239327,27.02352508,3828.2,3828.1,1e-08]
[1754590239633,23.09502508,3828.2,3828.1,1e-08]
[1754590239930,22.49657108,3828.2,3828.1,1e-08]
[1754590240505,22.02357108,3828.2,3828.1,1e-08]
[1754590240702,7.52357108,3828.2,3828.1,1e-08]
[1754590240899,8.45207108,3828.2,3828.1,1e-08]
[1754590241332,22.95207108,3828.2,3828.1,1e-08]
[1754590241731,25.95207108,3828.2,3828.1,1e-08]
[1754590242939,26.05675508,3828.2,3828.1,1e-08]
[1754590243153,0.47280001,3826.9,3824.0,5.08700744]
[1754590243357,10.31802991,3826.0,3824.3,0.4668]
[1754590243528,2.61438684,3825.0,3824.4,0.2979]
[1754590243728,21.17913851,3824.9,3824.5,0.4668]
[1754590243940,21.17913851,3824.9,3824.7,10.31802991]
[1754590243941,4.032,3824.8,3824.7,10.31802991]
[1754590244215,4.032,3824.9,3824.8,0.7647]
[1754590244918,14.5,3825.3,3824.8,1.71246763]
[1754590245227,4.032,3825.2,3825.0,10.31802991]
[1754590245431,4.032,3825.2,3825.1,0.7647]
[1754590245638,4.032,3825.2,3825.1,0.2979]
[1754590245822,4.032,3825.2,3825.1,0.7647]
[1754590246380,4.032,3825.2,3825.1,0.4668]
[1754590246512,14.5,3825.4,3825.1,0.4668]
[1754590246717,14.5,3825.4,3825.1,0.7647]
[1754590246718,4.033,3825.3,3825.1,0.7647]
[1754590246950,4.033,3825.3,3825.2,0.2979]
[1754590247128,4.033,3825.3,3825.2,0.7647]
[1754590247642,4.033,3825.3,3825.2,0.4668]
[1754590249048,4.032,3825.3,3825.2,0.4668]
[1754590249951,14.5,3825.3,3824.9,0.4668]
[1754590250176,18.531,3825.3,3824.8,2.61449038]
[1754590250334,18.531,3825.3,3825.0,0.4668]
[1754590251232,18.531,3825.3,3824.6,0.4668]
[1754590251436,2.61424239,3825.2,3824.6,0.4668]
[1754590251768,6.64331108,3825.1,3824.6,0.4668]
[1754590251970,6.64331108,3825.1,3824.6,3.08145114]
[1754590251971,4.029,3825.1,3824.6,3.08145114]
[1754590252140,4.029,3825.0,3824.9,10.31802991]
[1754590252341,4.029,3825.0,3824.9,13.69715835]
[1754590252638,4.029,3825.0,3824.9,0.4668]
[1754590252947,4.029,3825.0,3824.6,10.31802991]
[1754590253260,4.029,3825.0,3824.5,2.61471103]
[1754590253464,4.9575,3825.0,3824.3,0.001]
[1754590253633,4.9575,3825.0,3824.3,3.001]
[1754590253832,2.61446706,3824.9,3824.3,3.001]
[1754590254052,6.77493024,3824.8,3824.3,0.1314]
[1754590254252,2.61464159,3824.7,3824.3,0.001]
[1754590254452,4.03,3824.6,3824.3,0.001]
[1754590254865,0.1304,3824.4,3824.3,0.001]
[1754590255165,6.77518924,3824.4,3824.3,0.001]
[1754590255352,7.70368924,3824.4,3824.3,0.001]
[1754590255755,22.20368924,3824.4,3824.3,0.001]
[1754590255955,18.17368924,3824.4,3824.3,0.001]
[1754590256160,21.27518924,3824.4,3824.3,0.001]
[1754590256345,22.20368924,3824.4,3824.3,0.001]
[1754590257537,2.61519953,3823.8,3823.7,1e-08]
[1754590257774,2.6160205,3822.6,3822.5,1.497]
[1754590257951,4.1642,3822.6,3822.5,1.497]
[1754590258156,18.6642,3822.6,3822.5,1.497]
[1754590259469,14.6312,3822.6,3822.5,1.497]
[1754590259671,18.6642,3822.6,3822.5,1.497]
[1754590260185,14.6312,3822.6,3822.5,1.497]
[1754590260475,4.032,3822.6,3822.5,5.0566838]
[1754590260636,4.032,3822.6,3822.5,5.1878838]
[1754590260836,4.034,3822.6,3822.5,5.18787152]
[1754590261168,4.034,3822.6,3822.5,2.1242]
[1754590261476,4.034,3822.6,3822.5,1.497]
[1754590261647,4.6141,3822.6,3822.5,1.497]
[1754590261855,4.1652,3822.6,3822.5,1.497]
[1754590262176,0.1312,3822.6,3822.5,1.497]
[1754590262480,4.1652,3822.6,3822.5,1.497]
[1754590263587,4.6384,3822.6,3822.5,1.497]
[1754590263900,5.0873,3822.6,3822.5,1.497]
[1754590264457,18.6652,3822.6,3822.5,1.497]
[1754590265384,19.5873,3822.6,3822.5,1.497]
[1754590265887,14.6312,3822.6,3822.5,1.497]
[1754590266087,18.6642,3822.6,3822.5,1.497]
[1754590266538,14.5,3822.6,3822.5,1.497]
[1754590266747,18.534,3822.6,3822.5,1.497]
[1754590267562,18.533,3822.6,3822.5,1.497]
[1754590267972,18.533,3822.6,3822.5,4.60908894]
[1754590268171,0.786043,3823.4,3822.5,2.71553032]
[1754590268349,2.85709498,3823.3,3822.5,1.993]
[1754590268551,19.69658675,3823.2,3822.5,1.497]
[1754590268880,2.61582335,3822.9,3822.5,1.497]
[1754590269105,4.5062,3822.8,3822.5,1.497]
[1754590269318,4.033,3822.8,3822.5,1.497]
[1754590269488,19.4551,3822.8,3822.5,1.497]
[1754590269683,18.533,3822.8,3822.5,1.497]
[1754590270184,4.033,3822.8,3822.5,1.497]
[1754590270588,4.033,3822.8,3822.5,1.993]
[1754590270835,4.033,3822.8,3822.5,1.497]
[1754590271610,2.6151306,3824.0,3823.2,2.61560668]
[1754590271781,0.79884851,3823.7,3823.2,0.496]
[1754590271981,15.29884851,3823.6,3823.1,0.55]
[1754590272181,15.29884851,3823.6,3822.6,1.046]
[1754590272182,1.47900854,3823.5,3822.6,1.046]
[1754590272381,1.51170109,3823.5,3822.7,0.55]
[1754590272719,14.5,3823.6,3822.9,0.55]
[1754590272871,0.785833,3824.7,3823.2,0.55]
[1754590273075,2.61490124,3824.3,3823.4,2.61542675]
[1754590273303,4.59551202,3824.2,3823.5,2.61539767]
[1754590273504,0.55751202,3824.1,3823.5,2.61539767]
[1754590273710,4.59551202,3824.0,3823.5,2.61538774]
[1754590274031,4.59551202,3823.9,3823.8,2.61519953]
[1754590274211,14.5,3823.9,3823.8,0.496]
[1754590274552,19.09451202,3823.9,3823.8,3.11119953]
[1754590274687,18.537,3823.9,3823.8,3.11119953]
[1754590274888,4.037,3823.9,3823.8,2.61519953]
[1754590275103,4.037,3823.9,3823.6,2.61526879]
[1754590275386,4.037,3823.9,3823.3,1.69455493]
[1754590275387,4.037,3823.9,3823.4,3.16547313]
[1754590275590,4.037,3823.9,3823.5,3.0]
[1754590275826,4.037,3823.9,3823.6,2.61528278]
[1754590276005,4.037,3823.9,3823.7,2.61525384]
[1754590276202,4.037,3823.9,3823.6,2.61531423]
[1754590276396,4.037,3823.9,3823.5,0.55]
[1754590276598,4.037,3823.9,3823.8,2.61519953]
[1754590277518,0.6891769,3824.1,3823.9,2.61512771]
[1754590277721,4.034,3824.0,3823.9,2.61512771]
[1754590278029,0.1304,3824.1,3824.0,2.61506276]
[1754590278330,0.1304,3824.1,3824.0,3.11106276]
[1754590278629,0.1304,3824.5,3824.1,2.61499146]
[1754590278835,4.5927769,3824.4,3824.2,2.6148802]
[1754590279125,4.033,3824.3,3824.2,3.1108802]
[1754590279545,0.55941044,3824.6,3824.5,2.61472087]
[1754590279720,4.59241044,3824.6,3824.5,2.61472087]
[1754590280290,4.59241044,3824.6,3824.3,0.1304]
[1754590280420,0.55941044,3824.5,3824.4,2.61474017]
[1754590280896,4.033,3824.6,3824.4,2.61474017]
[1754590281099,4.033,3824.6,3824.5,2.61472087]
[1754590281300,4.033,3824.6,3824.4,2.61477016]
[1754590281613,4.033,3824.6,3824.5,2.61472087]
[1754590282699,0.002,3824.9,3824.8,2.61451579]
[1754590282912,4.032,3824.9,3824.8,2.61451579]
[1754590283111,4.032,3824.9,3824.8,3.24091579]
[1754590283316,4.032,3824.9,3824.8,2.74491579]
[1754590284135,0.002,3824.9,3824.8,3.79091579]
[1754590284295,0.002,3824.9,3824.8,4.08881579]
[1754590284811,0.002,3824.9,3824.8,3.79091579]
[1754590285603,0.002,3824.9,3824.8,4.51981686]
[1754590286622,0.002,3824.9,3824.8,7.02381686]
[1754590287004,0.002,3824.9,3824.8,7.51981686]
[1754590287232,0.002,3824.9,3824.8,7.81771686]
[1754590287834,0.002,3824.9,3824.8,20.9363662]
[1754590288936,0.002,3824.9,3824.8,20.6384662]
[1754590289242,0.002,3824.9,3824.8,20.9363662]
[1754590290702,0.002,3824.9,3824.8,22.18156486]
[1754590292701,0.002,3824.9,3824.8,21.88366486]
[1754590293102,0.002,3824.9,3824.8,21.38766486]
[1754590293440,0.002,3824.9,3824.8,17.36166486]
[1754590294933,0.002,3824.9,3824.8,17.82126486]
[1754590295351,0.002,3824.9,3824.8,22.14216486]
[1754590296348,0.002,3824.9,3824.8,21.84426486]
[1754590296663,0.002,3824.9,3824.8,11.04681686]
[1754590296807,0.002,3824.9,3824.8,21.38466486]
[1754590297006,0.002,3824.9,3824.8,21.38266486]
[1754590298137,0.002,3824.9,3824.8,11.04481686]
[1754590298305,0.002,3824.9,3824.8,21.38266486]
[1754590298501,0.002,3824.9,3824.8,17.36166486]
[1754590300339,0.002,3824.9,3824.8,21.84126486]
[1754590300541,0.002,3824.9,3824.8,22.08485022]
[1754590301442,0.002,3824.9,3824.8,26.35485022]
[1754590301614,0.002,3824.9,3824.8,26.65275022]
[1754590302347,0.002,3825.7,3825.6,3.16396905]
[1754590302568,0.002,3825.7,3825.6,14.06209786]
[1754590303031,0.002,3825.7,3825.6,14.19249786]
[1754590304416,0.9665,3825.7,3825.6,3.53825295]
[1754590304619,0.9665,3825.7,3825.6,0.2438839]
[1754590304818,0.9665,3825.7,3824.1,6.02215527]
[1754590304819,11.304348,3825.7,3824.1,6.02215527]
[1754590305017,6.4210295,3825.6,3824.1,6.02215527]
[1754590305221,6.4210295,3825.6,3824.3,2.61483569]
[1754590305222,0.1304,3824.9,3824.3,2.61483569]
[1754590305443,0.9645,3824.8,3824.3,0.1304]
[1754590305647,0.9645,3824.7,3824.3,0.1304]
[1754590305836,0.1304,3824.9,3824.3,0.1304]
[1754590306035,0.9645,3824.6,3824.3,0.1304]
[1754590306223,0.9645,3824.5,3824.3,0.1304]
[1754590306577,0.9645,3824.4,3824.3,0.1304]
[1754590306912,0.9645,3824.4,3824.3,2.74525762]
[1754590307220,0.9645,3824.4,3824.3,3.29525762]
[1754590307838,0.9645,3824.4,3824.3,0.6804]
[1754590308324,0.9645,3824.4,3824.3,0.1304]
[1754590308934,0.9645,3824.4,3824.2,0.1304]
[1754590309145,0.9645,3824.3,3824.2,0.1304]
[1754590309641,2.61492599,3824.2,3824.1,6.02215527]
[1754590309947,2.61530988,3823.7,3823.3,0.1304]
[1754590310245,4.02,3823.6,3823.3,0.1304]
[1754590310452,4.02,3823.6,3822.8,0.001]
[1754590310453,2.61546738,3823.5,3822.8,2.61687667]
[1754590310655,0.1304,3823.5,3823.1,2.61567694]
[1754590310876,0.9645,3824.0,3823.2,0.4596]
[1754590311165,4.023,3824.1,3823.6,0.55]
[1754590311328,0.4928,3824.0,3823.8,0.1304]
[1754590311531,0.9645,3824.0,3823.8,0.1304]
[1754590311827,4.023,3824.1,3823.9,0.55]
[1754590312054,4.023,3824.1,3823.9,3.16506441]
[1754590312253,0.4928,3824.4,3823.9,0.55]
[1754590312552,0.4928,3824.4,3824.2,2.61488171]
[1754590312755,4.022,3824.4,3824.3,2.61485012]
[1754590313441,4.4937,3824.5,3824.2,2.61486266]
[1754590313638,4.9865,3824.5,3824.2,2.61486266]
[1754590313834,4.9865,3824.5,3824.3,2.61485762]
[1754590313835,0.4928,3824.4,3824.3,2.61485762]
[1754590314244,0.4928,3824.4,3824.1,2.74534483]
[1754590314756,0.4928,3824.4,3824.3,2.61485762]
[1754590315056,0.4928,3824.4,3824.1,2.74539329]
[1754590315057,4.4937,3824.5,3824.1,2.74534708]
[1754590315357,4.5128,3824.4,3824.2,2.61487205]
[1754590315543,4.9845,3824.4,3824.3,2.61485762]
[1754590315750,4.9845,3824.4,3824.2,2.61490954]
[1754590316475,0.4928,3824.8,3824.3,3.29524436]
[1754590316681,4.02,3824.7,3824.3,3.29524436]
[1754590316977,0.4928,3824.6,3824.3,3.29523875]
[1754590317332,6.279,3824.9,3824.5,2.6147202]
[1754590317532,4.02,3824.8,3824.6,0.1304]
[1754590317842,4.9845,3824.8,3824.6,0.1304]
[1754590318044,4.4917,3824.8,3824.6,0.1304]
[1754590318249,0.9578,3824.7,3824.6,0.1304]
[1754590319144,4.02,3824.8,3824.6,0.1304]
[1754590319472,6.279,3824.9,3824.7,2.61458345]
[1754590319683,4.02,3824.8,3824.7,2.61458345]
[1754590320049,1.0882,3825.1,3824.7,2.61458345]
[1754590320237,2.61413192,3825.4,3824.9,0.55]
[1754590320238,4.018,3825.0,3824.9,0.55]
[1754590320446,4.018,3825.1,3824.9,0.55]
[1754590320660,4.018,3825.1,3825.0,2.61437908]
[1754590320860,4.018,3825.1,3825.0,2.6143761]
[1754590320861,4.019,3825.1,3825.0,2.6143761]
[1754590321177,4.019,3825.1,3824.9,0.55]